[Event "IND-ch Women 2019"]
[Site "Karaikkudi"]
[Date "2019.07.22"]
[Round "6.17"]
[White "Pandey Srishti"]
[Black "Varshini, V."]
[Result "1/2-1/2"]
[ECO "D36"]
[WhiteElo "1882"]
[BlackElo "2087"]
[Annotator "NA"]
[PlyCount "73"]
[EventDate "2019.07.19"]
[EventType "swiss"]
[EventCountry "IND"]
[SourceTitle "playchess.com"]
[Source "ChessBase"]
[SourceQuality "1"]
[TimeControl "40/5400+30:1800+30"]

1. d4 {[%emt 1:30:30]} d5 {[%emt 0:00:04]} 2. c4 {[%emt 0:00:00]} e6 {[%emt 0:00:07]} 3. Nc3 {[%emt 0:00:00]} Nf6 {[%emt 0:00:05]} 4. Bg5 {[%emt 0:00:00]} Be7 {[%emt 0:00:09]} 5. e3 {[%emt 0:00:00]} O-O {[%emt 0:00:19]} 6. cxd5 {[%emt 0:00:00]} exd5 {[%emt 0:00:09]} 7. Bd3 {[%emt 0:00:00]} Nbd7 {[%emt 0:00:35]} 8. Nf3 {[%emt 0:00:00]} c6 {[%emt 0:00:17]} 9. Qc2 {[%emt 0:00:00]} h6 {[%emt 0:00:14]} 10. Bh4 {[%emt 0:00:00]} Re8 {[%emt 0:00:23]} 11. O-O {[%emt 0:00:00]} Ne4 {[%emt 0:04:27]} 12. Bxe7 {[%emt 0:00:00]} Qxe7 {[%emt 0:00:04]} 13. Bxe4 {[%emt 0:00:00]} dxe4 {[%emt 0:00:05]} 14. Nd2 {[%emt 0:00:00]} Nf6 {[%emt 0:01:53]} 15. Rab1 {[%emt 0:00:00]} Nd5 $11 {[%emt 0:19:28]} 16. Nxd5 {[%emt 0:00:00]} cxd5 {[%emt 0:00:06]} 17. Rbc1 {[%emt 0:00:00]} Be6 {[%emt 0:14:46]} 18. Qc7 {[%emt 0:00:00]} Qb4 {[%emt 0:00:13]} 19. Qc3 {[%emt 0:00:00]} Qb5 {[%emt 0:05:19]} 20. Nb1 {[%emt 0:00:00]} Rac8 {[%emt 0:12:27]} 21. Qd2 {[%emt 0:00:00]} Qa6 {[%emt 0:03:07]} 22. a3 {[%emt 0:00:00]} Qb5 {[%emt 0:03:55]} 23. Rxc8 {[%emt 0:00:00]} Rxc8 {[%emt 0:00:05]} 24. Rc1 {[%emt 0:00:00]} Rxc1+ {[%emt 0:01:47]} 25. Qxc1 {[%emt 0:00:00]} h5 {[%emt 0:03:04]} 26. h3 {[%emt 0:00:00]} a5 {[%emt 0:02:41]} 27. Nc3 {[%emt 0:00:00]} Qb3 {[%emt 0:00:21]} 28. Ne2 {[%emt 0:00:00]} g5 {[%emt 0:02:22]} 29. Ng3 {[%emt 0:00:00]} h4 {[%emt 0:02:26]} 30. Nh5 {[%emt 0:00:00]} Qa4 {[%emt 0:07:16]} 31. Kh2 {[%emt 0:00:00]} Kh7 {[%emt 0:01:11]} 32. Qc7 {[%emt 0:00:00]} Kg6 {[%emt 0:01:36]} 33. g4 {[%emt 0:00:00]} hxg3+ {[%emt 0:00:22]} 34. Nxg3 {[%emt 0:16:30]} Qd1 {[%emt 0:02:34]} 35. Qd8 {[%emt 0:00:00]} Qf3 {[%emt 0:00:37]} 36. Qg8+ {[%emt 0:00:00]} Kf6 {[%emt 0:00:16]} 37. Qd8+ {[%emt 0:01:30] Qd1 Qe8} 1/2-1/2

[Event "IND-ch Women 2019"]
[Site "Karaikkudi"]
[Date "2019.07.22"]
[Round "6.18"]
[White "Saranya, J."]
[Black "Boramanikar Tanisha S"]
[Result "1-0"]
[ECO "B33"]
[WhiteElo "2067"]
[BlackElo "1720"]
[Annotator "NA"]
[PlyCount "123"]
[EventDate "2019.07.19"]
[EventType "swiss"]
[EventCountry "IND"]
[SourceTitle "playchess.com"]
[Source "ChessBase"]
[SourceQuality "1"]
[TimeControl "40/5400+30:1800+30"]

1. e4 {[%emt 0:00:00]} c5 {[%emt 0:00:00]} 2. Nf3 {[%emt 0:00:00]} Nc6 {[%emt 0:00:00]} 3. d4 {[%emt 0:00:00]} cxd4 {[%emt 0:00:06]} 4. Nxd4 {[%emt 0:00:05]} Nf6 {[%emt 0:00:08]} 5. Nc3 {[%emt 0:00:07]} e5 {[%emt 0:00:11]} 6. Ndb5 {[%emt 0:00:06]} d6 {[%emt 0:00:17]} 7. Bg5 {[%emt 0:00:10]} a6 {[%emt 0:00:13]} 8. Na3 {[%emt 0:00:06]} b5 {[%emt 0:00:12]} 9. Nd5 {[%emt 0:00:16]} Be7 {[%emt 0:00:09]} 10. Bxf6 {[%emt 0:00:18]} Bxf6 {[%emt 0:00:06]} 11. c4 {[%emt 0:00:19]} b4 {[%emt 0:00:14]} 12. Nc2 {[%emt 0:00:07]} a5 {[%emt 0:00:15]} 13. g3 {[%emt 0:00:20] B33: Sicilian: Pelikan and Sveshnikov Variations} (13. Qf3 Be6 14. Rd1 Bxd5 15. cxd5 Na7 16. g3 Rc8 17. Ne3 O-O 18. h4 Rc5 19. Bd3 Nc8 20. O-O Qc7 {½-½ (31) Nakamura,H (2746)-Caruana,F (2828) Saint Louis 2019}) 13... Bg5 {[%emt 0:01:04]} 14. h4 {[%emt 0:00:14]} Bh6 {[%emt 0:00:20]} 15. Bg2 {[%emt 0:00:36]} O-O {[%emt 0:01:11]} 16. O-O {[%emt 0:00:38]} Rb8 {[%emt 0:03:02]} 17. b3 {[%emt 0:00:22]} Be6 {[%emt 0:00:30]} 18. Qd3 {[%emt 0:01:51]} Bxd5 $146 {[%emt 0:04:31]} ({Predecessor:} 18... g6 19. Rad1 Bg7 20. Nde3 Qb6 {½-½ (34) Degtyarev,A (2370)-Moiseev,S (2436) ICCF email 2015}) 19. Qxd5 {[%emt 0:00:34]} Qb6 {[%emt 0:00:17]} 20. Rfd1 {[%emt 0:05:56]} Rfd8 {[%emt 0:01:33]} 21. Qd3 {[%emt 0:01:45]} g6 {[%emt 0:04:20]} 22. h5 $11 {[%emt 0:01:45]} Rb7 {[%emt 0:09:52]} 23. Bh3 {[%emt 0:02:17]} Re7 {[%emt 0:01:53]} 24. Kg2 {[%emt 0:02:21]} Nd4 {[%emt 0:03:05]} 25. Bg4 {[%emt 0:07:15]} Ne6 {[%emt 0:08:20]} 26. Bxe6 {[%emt 0:01:23]} fxe6 {[%emt 0:01:32]} 27. Rh1 {[%emt 0:02:49]} Rf7 {[%emt 0:03:45]} 28. Raf1 {[%emt 0:00:48]} Rdf8 {[%emt 0:01:15]} 29. Qe2 {[%emt 0:00:31]} Bg5 {[%emt 0:03:28]} 30. hxg6 {[%emt 0:00:42]} hxg6 {[%emt 0:00:04]} 31. Rh2 {[%emt 0:01:12]} Qa7 {[%emt 0:04:05]} 32. f3 {[%emt 0:11:19]} Rh7 {[%emt 0:03:22]} 33. Rxh7 {[%emt 0:00:25]} Qxh7 {[%emt 0:00:08]} 34. a3 {[%emt 0:08:44]} Rb8 {[%emt 0:15:14]} 35. axb4 {[%emt 0:00:41]} axb4 {[%emt 0:00:05]} 36. f4 {[%emt 0:01:00]} exf4 {[%emt 0:01:01]} 37. Qg4 {[%emt 0:01:27]} Qh5 {[%emt 0:03:21]} 38. Qxe6+ {[%emt 0:01:46]} Kg7 {[%emt 0:00:08]} 39. Qd7+ {[%emt 0:02:50]} Kg8 {[%emt 0:00:28]} 40. g4 {[%emt 0:00:00]} Qh4 {[%emt 0:00:00]} 41. Rf3 {[%emt 0:09:50]} Rf8 {[%emt 0:01:30]} 42. Nxb4 {[%emt 0:05:34]} Qe1 {[%emt 0:01:04]} 43. Nd3 {[%emt 0:02:49]} Qxe4 {[%emt 0:02:08]} 44. Nf2 {[%emt 0:00:40]} Qe5 {[%emt 0:00:50]} 45. Qc6 {[%emt 0:02:20]} Bh4 {[%emt 0:01:39]} 46. Qe4 {[%emt 0:02:27]} Bxf2 {[%emt 0:03:18]} 47. Qxg6+ {[%emt 0:00:12]} Qg7 {[%emt 0:00:24]} 48. Qxg7+ {[%emt 0:00:58]} Kxg7 {[%emt 0:00:05]} 49. Rxf2 {[%emt 0:01:04]} Rb8 {[%emt 0:53:47]} 50. Rb2 {[%emt 0:00:32]} Kf6 {[%emt 0:00:00]} 51. Kf3 {[%emt 0:01:08]} Kg5 {[%emt 0:00:00]} 52. b4 {[%emt 0:00:23]} Ra8 {[%emt 0:00:00]} 53. b5 {[%emt 0:01:41]} Ra3+ {[%emt 0:00:00]} 54. Ke4 {[%emt 0:00:21]} Kxg4 {[%emt 0:00:00]} 55. b6 {[%emt 0:00:42]} Ra8 {[%emt 0:00:00]} 56. b7 {[%emt 0:00:46]} Rb8 {[%emt 0:00:00]} 57. Kd5 {[%emt 0:00:07]} f3 {[%emt 0:00:00]} 58. Kc6 {[%emt 0:00:06]} Kg3 {[%emt 0:00:00]} 59. Kc7 {[%emt 0:00:09]} f2 {[%emt 0:00:00]} 60. Rxf2 {[%emt 0:00:39]} Rxb7+ {[%emt 0:00:00]} 61. Kxb7 {[%emt 0:00:34]} Kxf2 {[%emt 0:00:00]} 62. Kc6 {[%emt 0:00:07]} 1-0

[Event "IND-ch Women 2019"]
[Site "Karaikkudi"]
[Date "2019.07.22"]
[Round "6.19"]
[White "Shriya R Revankar"]
[Black "Kiran, Manisha Mohanty"]
[Result "0-1"]
[ECO "B51"]
[WhiteElo "1627"]
[BlackElo "2054"]
[Annotator "NA"]
[PlyCount "56"]
[EventDate "2019.07.19"]
[EventType "swiss"]
[EventCountry "IND"]
[SourceTitle "playchess.com"]
[Source "ChessBase"]
[SourceQuality "1"]
[TimeControl "40/5400+30:1800+30"]

1. e4 {[%emt 0:00:00]} c5 {[%emt 0:00:00]} 2. Nf3 {[%emt 0:00:00]} d6 {[%emt 0:00:00]} 3. Bb5+ {[%emt 0:00:00]} Nd7 {[%emt 0:00:00]} 4. d4 {[%emt 0:00:00]} Ngf6 {[%emt 0:00:00]} 5. Nc3 {[%emt 0:00:00]} cxd4 {[%emt 0:00:00]} 6. Qxd4 {[%emt 0:00:06]} a6 {[%emt 0:00:05]} 7. Bxd7+ {[%emt 0:04:25]} Bxd7 {[%emt 0:00:12]} 8. Bg5 {[%emt 0:05:48]} e6 {[%emt 0:04:44]} 9. e5 {[%emt 0:03:07]} dxe5 {[%emt 0:00:07]} 10. Nxe5 {[%emt 0:00:05]} Bb5 $11 {[%emt 0:08:36]} 11. Qxd8+ {[%emt 0:19:31]} Rxd8 {[%emt 0:00:45]} 12. Nxb5 {[%emt 0:01:08]} axb5 {[%emt 0:00:05]} 13. Ng4 {[%emt 0:00:23]} Nxg4 {[%emt 0:00:41]} 14. Bxd8 {[%emt 0:00:06]} Kxd8 {[%emt 0:00:10]} 15. h3 {[%emt 0:07:05]} Nf6 {[%emt 0:00:08]} 16. a4 {[%emt 0:00:20]} b4 {[%emt 0:01:33]} 17. c4 {[%emt 0:05:03]} Bc5 {[%emt 0:03:17]} 18. O-O-O+ {[%emt 0:01:29]} Kc7 {[%emt 0:00:33]} 19. f3 {[%emt 0:00:44]} Nd7 {[%emt 0:09:59]} 20. b3 {[%emt 0:01:45]} Re8 {[%emt 0:01:10]} 21. Rhe1 {[%emt 0:04:11]} e5 {[%emt 0:00:33]} 22. g4 {[%emt 0:02:05]} Re6 {[%emt 0:00:09]} 23. Rd3 {[%emt 0:04:27]} Bd4 {[%emt 0:02:42]} 24. Kc2 {[%emt 0:00:58]} Nc5 {[%emt 0:01:06]} 25. Rdd1 {[%emt 0:00:16]} Rf6 {[%emt 0:00:20]} 26. Rf1 {[%emt 0:00:28]} Ne6 {[%emt 0:00:10]} 27. h4 {[%emt 0:02:03]} h5 {[%emt 0:00:55]} 28. Rde1 {[%emt 0:04:16]} Bc3 {[%emt 0:00:52]} 0-1

[Event "IND-ch Women 2019"]
[Site "Karaikkudi"]
[Date "2019.07.22"]
[Round "6.20"]
[White "Potluri Saye Srreezza"]
[Black "Sunyasakta, Satpathy"]
[Result "1-0"]
[ECO "E09"]
[WhiteElo "1999"]
[BlackElo "1801"]
[Annotator "NA"]
[PlyCount "63"]
[EventDate "2019.07.19"]
[EventType "swiss"]
[EventCountry "IND"]
[SourceTitle "playchess.com"]
[Source "ChessBase"]
[SourceQuality "1"]
[TimeControl "40/5400+30:1800+30"]

1. Nf3 {[%emt 0:00:00]} Nf6 {[%emt 0:00:02]} 2. d4 {[%emt 0:00:06]} d5 {[%emt 0:00:12]} 3. c4 {[%emt 0:00:10]} e6 {[%emt 0:00:05]} 4. g3 {[%emt 0:00:08]} c6 {[%emt 0:00:23]} 5. Bg2 {[%emt 0:00:08]} Nbd7 {[%emt 0:00:11]} 6. O-O {[%emt 0:00:14]} Be7 {[%emt 0:00:40]} 7. Nbd2 {[%emt 0:00:15]} O-O {[%emt 0:00:57]} 8. Qc2 {[%emt 0:00:06]} b6 {[%emt 0:00:24]} 9. e4 {[%emt 0:00:52]} Ba6 {[%emt 0:04:24]} 10. b3 {[%emt 0:00:37]} Rc8 {[%emt 0:00:57]} 11. Bb2 {[%emt 0:00:36]} c5 {[%emt 0:02:21]} 12. exd5 {[%emt 0:00:51]} exd5 {[%emt 0:00:37]} 13. Qf5 {[%emt 0:00:31]} dxc4 {[%emt 0:03:29]} 14. Nxc4 {[%emt 0:01:30]} cxd4 {[%emt 0:01:26]} 15. Nxd4 {[%emt 0:00:35]} Rc5 {[%emt 0:10:12]} 16. Qf3 {[%emt 0:13:14]} Bxc4 {[%emt 0:11:45]} 17. bxc4 {[%emt 0:00:10]} Qc7 {[%emt 0:09:47]} 18. Nf5 {[%emt 0:10:17]} Ne5 {[%emt 0:07:54]} 19. Qe2 {[%emt 0:06:31]} Ng6 {[%emt 0:01:31]} 20. Ne3 {[%emt 0:00:27]} Re8 {[%emt 0:08:53]} 21. Rfe1 {[%emt 0:05:23]} Qc8 {[%emt 0:11:15]} 22. h4 {[%emt 0:05:58]} Qe6 {[%emt 0:08:08]} 23. Qf1 {[%emt 0:00:27]} Qc8 {[%emt 0:04:20]} 24. Rad1 {[%emt 0:00:32]} Qa6 {[%emt 0:03:45]} 25. Nd5 {[%emt 0:03:22]} Nxd5 {[%emt 0:00:55]} 26. cxd5 {[%emt 0:00:36]} Qxf1+ {[%emt 0:02:07]} 27. Bxf1 {[%emt 0:00:24]} Kf8 {[%emt 0:03:12]} 28. h5 {[%emt 0:00:45]} Nh8 {[%emt 0:01:00]} 29. h6 {[%emt 0:01:09]} gxh6 {[%emt 0:02:03]} 30. Bxh8 {[%emt 0:00:09]} f6 {[%emt 0:00:15]} 31. d6 {[%emt 0:01:14]} Bd8 {[%emt 0:00:54]} 32. Bg7+ {[%emt 0:00:20]} 1-0

[Event "IND-ch Women 2019"]
[Site "Karaikkudi"]
[Date "2019.07.22"]
[Round "6.21"]
[White "Divyabharathi Masanam"]
[Black "Saranya, J."]
[Result "0-1"]
[ECO "B35"]
[WhiteElo "1730"]
[BlackElo "2067"]
[Annotator "NA"]
[PlyCount "94"]
[EventDate "2019.07.19"]
[EventType "swiss"]
[EventCountry "IND"]
[SourceTitle "playchess.com"]
[Source "ChessBase"]
[SourceQuality "1"]
[TimeControl "40/5400+30:1800+30"]

1. e4 {[%emt 0:01:18]} c5 {[%emt 0:00:00]} 2. Nf3 {[%emt 0:00:40]} Nc6 {[%emt 0:00:00]} 3. d4 {[%emt 0:00:19]} cxd4 {[%emt 0:00:00]} 4. Nxd4 {[%emt 0:00:04]} g6 {[%emt 0:00:00]} 5. Nc3 {[%emt 0:01:02]} Bg7 {[%emt 0:00:11]} 6. Be3 {[%emt 0:00:39]} Nf6 {[%emt 0:00:05]} 7. Bc4 {[%emt 0:00:16]} Qa5 {[%emt 0:01:47]} 8. O-O {[%emt 0:10:58]} O-O {[%emt 0:00:56]} 9. h3 {[%emt 0:04:32]} d6 $14 {[%emt 0:13:03]} 10. Bb3 {[%emt 0:06:28]} Bd7 {[%emt 0:01:32]} 11. Qd3 {[%emt 0:05:16]} a6 {[%emt 0:12:39]} 12. Rfd1 {[%emt 0:05:58]} Rfc8 {[%emt 0:09:42]} 13. f4 {[%emt 0:09:47]} Qh5 {[%emt 0:11:10]} 14. Nxc6 {[%emt 0:08:11]} Bxc6 {[%emt 0:04:49]} 15. Nd5 {[%emt 0:02:01]} Bxd5 {[%emt 0:02:58]} 16. exd5 {[%emt 0:00:46]} Nd7 {[%emt 0:01:12]} 17. c3 {[%emt 0:04:02]} Nc5 {[%emt 0:01:54]} 18. Bxc5 {[%emt 0:02:52]} dxc5 {[%emt 0:00:41]} 19. Re1 {[%emt 0:05:19]} b5 {[%emt 0:04:16]} 20. Qe4 {[%emt 0:04:48]} Ra7 {[%emt 0:04:35]} 21. Kh2 {[%emt 0:04:35]} Rd7 {[%emt 0:03:05]} 22. Rad1 {[%emt 0:06:05]} c4 {[%emt 0:02:38]} 23. Bc2 {[%emt 0:00:10]} Rcd8 {[%emt 0:00:56]} 24. g4 {[%emt 0:01:17]} Qh4 {[%emt 0:00:57]} 25. Kg2 {[%emt 0:00:05]} Bf8 {[%emt 0:04:40]} 26. Re2 {[%emt 0:03:29]} e6 {[%emt 0:06:37]} 27. Red2 {[%emt 0:00:05]} Bc5 {[%emt 0:00:46]} 28. Qf3 {[%emt 0:05:34]} exd5 {[%emt 0:02:51]} 29. g5 {[%emt 0:02:34]} Bb6 {[%emt 0:01:09]} 30. Qg3 {[%emt 0:00:27]} Qxg3+ {[%emt 0:01:49]} 31. Kxg3 {[%emt 0:00:34]} Be3 {[%emt 0:02:35]} 32. Re2 {[%emt 0:00:09]} d4 {[%emt 0:01:16]} 33. cxd4 {[%emt 0:01:38]} Bxd4 {[%emt 0:00:09]} 34. Kf3 {[%emt 0:00:05]} Bxb2 {[%emt 0:00:45]} 35. Rxd7 {[%emt 0:02:02]} Rxd7 {[%emt 0:00:05]} 36. Re8+ {[%emt 0:00:35]} Kg7 {[%emt 0:00:09]} 37. Ra8 {[%emt 0:00:03]} Rd2 {[%emt 0:01:36]} 38. Be4 {[%emt 0:00:10]} c3 {[%emt 0:00:36]} 39. Rxa6 {[%emt 0:01:03]} c2 {[%emt 0:00:19]} 40. Bxc2 {[%emt 0:00:00]} Rxc2 {[%emt 0:00:00]} 41. Rb6 {[%emt 0:00:10]} Bc1 {[%emt 0:00:17]} 42. Rxb5 {[%emt 0:00:18]} Rxa2 {[%emt 0:00:06]} 43. Rc5 {[%emt 0:00:11]} Ra3+ {[%emt 0:00:06]} 44. Kg4 {[%emt 0:01:28]} Be3 {[%emt 0:00:06]} 45. Re5 {[%emt 0:01:05]} Bf2 {[%emt 0:00:35]} 46. Re2 {[%emt 0:00:03]} Rg3+ {[%emt 0:00:16]} 47. Kh4 {[%emt 0:00:03]} Rg2+ {[%emt 0:00:06]} 0-1

[Event "IND-ch Women 2019"]
[Site "Karaikkudi"]
[Date "2019.07.23"]
[Round "7.1"]
[White "Kulkarni Bhakti"]
[Black "Soumya, Swaminathan"]
[Result "1-0"]
[ECO "D85"]
[WhiteElo "2388"]
[BlackElo "2402"]
[Annotator "ChessBase"]
[PlyCount "77"]
[EventDate "2019.07.19"]
[EventType "swiss"]
[EventCountry "IND"]
[SourceTitle "playchess.com"]
[Source "ChessBase"]
[SourceQuality "1"]
[TimeControl "40/5400+30:1800+30"]

1. d4 {[%emt 0:00:00]} Nf6 {[%emt 0:00:00]} 2. c4 {[%emt 0:00:15]} g6 {[%emt 0:00:12]} 3. Nc3 {[%emt 0:00:13]} d5 {[%emt 0:00:04]} 4. cxd5 {[%emt 0:00:13]} Nxd5 {[%emt 0:00:03]} 5. e4 {[%emt 0:00:15]} Nxc3 {[%emt 0:00:03]} 6. bxc3 {[%emt 0:00:04]} Bg7 {[%emt 0:00:06]} 7. Nf3 {[%emt 0:00:07]} c5 {[%emt 0:00:43]} 8. Be3 {[%emt 0:00:25]} Qa5 {[%emt 0:10:27]} 9. Nd2 {[%emt 0:02:24]} cxd4 {[%emt 0:08:41]} 10. cxd4 {[%emt 0:00:53]} O-O {[%emt 0:00:19]} 11. Bc4 {[%emt 0:05:03]} e6 {[%emt 0:01:40]} 12. O-O {[%emt 0:02:36]} b5 {[%emt 0:02:41]} 13. Nb3 {[%emt 0:01:50]} Qa4 {[%emt 0:03:33]} 14. Bd3 {[%emt 0:03:44]} Nc6 {[%emt 0:07:37]} 15. Qe2 {[%emt 0:08:59]} Rb8 {[%emt 0:11:43]} 16. e5 {[%emt 0:02:30]} Ne7 {[%emt 0:12:14]} 17. Rfb1 {[%emt 0:11:41]} b4 {[%emt 0:07:02]} 18. Nc5 {[%emt 0:07:20]} Qc6 {[%emt 0:00:07]} 19. a3 {[%emt 0:04:30]} a5 {[%emt 0:01:03]} 20. axb4 {[%emt 0:00:13]} axb4 {[%emt 0:00:08]} 21. Be4 {[%emt 0:06:15]} Qc7 {[%emt 0:03:32]} 22. Qc4 {[%emt 0:05:28]} Bd7 {[%emt 0:01:34]} 23. Rxb4 {[%emt 0:01:41]} Rxb4 {[%emt 0:00:12]} 24. Qxb4 {[%emt 0:00:04]} Bc6 {[%emt 0:00:16]} 25. Na6 {[%emt 0:06:10]} Ra8 {[%emt 0:06:52]} 26. Bxc6 {[%emt 0:17:16]} Nxc6 {[%emt 0:00:50]} 27. Qc3 {[%emt 0:00:13]} Qc8 {[%emt 0:04:15]} 28. Nc5 {[%emt 0:00:17]} Ne7 {[%emt 0:02:39]} 29. Qb2 {[%emt 0:05:29]} Rxa1+ {[%emt 0:03:41]} 30. Qxa1 {[%emt 0:00:02]} Nd5 {[%emt 0:00:49]} 31. Qc1 {[%emt 0:02:24]} f6 {[%emt 0:02:16]} 32. Nd3 {[%emt 0:02:01]} Qa6 {[%emt 0:01:51]} 33. Nc5 {[%emt 0:01:26]} Qc6 {[%emt 0:00:20]} 34. exf6 {[%emt 0:01:33]} Bxf6 {[%emt 0:00:11]} 35. Qb1 {[%emt 0:00:32]} Kf7 {[%emt 0:06:55]} 36. Qe4 {[%emt 0:01:20]} Qb6 {[%emt 0:00:54]} 37. h3 {[%emt 0:00:15]} Nc3 {[%emt 0:00:26]} 38. Qf3 {[%emt 0:00:39]} Ke7 {[%emt 0:01:24]} 39. Qxf6+ {[%emt 0:00:03]} 1-0

[Event "IND-ch Women 2019"]
[Site "Karaikkudi"]
[Date "2019.07.23"]
[Round "7.2"]
[White "Pratyusha, Bodda"]
[Black "Vantika Agrawal"]
[Result "1/2-1/2"]
[ECO "E73"]
[WhiteElo "2265"]
[BlackElo "2243"]
[Annotator "ChessBase"]
[PlyCount "173"]
[EventDate "2019.07.19"]
[EventType "swiss"]
[EventCountry "IND"]
[SourceTitle "playchess.com"]
[Source "ChessBase"]
[SourceQuality "1"]
[TimeControl "40/5400+30:1800+30"]

1. d4 {[%emt 0:00:00]} Nf6 {[%emt 0:00:00]} 2. c4 {[%emt 0:00:06]} g6 {[%emt 0:00:00]} 3. Nc3 {[%emt 0:00:06]} Bg7 {[%emt 0:00:00]} 4. e4 {[%emt 0:00:04]} d6 {[%emt 0:00:01]} 5. Be2 {[%emt 0:00:12]} O-O {[%emt 0:00:12]} 6. Be3 {[%emt 0:00:11]} Nbd7 {[%emt 0:00:27]} 7. g4 {[%emt 0:00:59]} c5 {[%emt 0:01:48]} 8. g5 {[%emt 0:07:09]} Ne8 {[%emt 0:08:12]} 9. h4 {[%emt 0:05:25]} Nc7 {[%emt 0:44:05]} 10. d5 {[%emt 0:03:34]} b5 {[%emt 0:02:01]} 11. cxb5 {[%emt 0:07:32]} a6 {[%emt 0:00:33]} 12. a4 {[%emt 0:03:46]} axb5 {[%emt 0:04:57]} 13. axb5 {[%emt 0:00:31]} Rb8 {[%emt 0:34:14]} 14. h5 {[%emt 0:06:18]} Nb6 {[%emt 0:00:00]} 15. f4 {[%emt 0:11:49]} e6 {[%emt 0:00:00]} 16. dxe6 {[%emt 0:01:41]} Bxe6 {[%emt 0:00:00]} 17. Kf2 {[%emt 0:03:39]} Nc4 {[%emt 0:00:00]} 18. Bxc4 {[%emt 0:04:35]} Bxc4 {[%emt 0:00:00]} 19. Qg4 {[%emt 0:03:05]} Bxc3 {[%emt 0:00:00]} 20. bxc3 {[%emt 0:00:15]} Nxb5 {[%emt 0:00:00]} 21. Nf3 {[%emt 0:15:35]} Nxc3 {[%emt 0:00:00]} 22. Nd2 {[%emt 0:00:34]} Rb2 {[%emt 0:00:00]} 23. hxg6 {[%emt 0:04:13]} fxg6 {[%emt 0:00:00]} 24. Kg1 {[%emt 0:09:35]} Ba2 {[%emt 0:03:50]} 25. Rc1 {[%emt 0:03:19]} Rxd2 {[%emt 0:01:35]} 26. Rxc3 {[%emt 0:01:20]} Rb2 {[%emt 0:00:22]} 27. Bc1 {[%emt 0:00:04]} Rb7 {[%emt 0:00:23]} 28. f5 {[%emt 0:02:16]} Qd7 {[%emt 0:00:48]} 29. Qg2 {[%emt 0:01:48]} Qa4 {[%emt 0:00:28]} 30. Ra3 {[%emt 0:04:14]} Qd4+ {[%emt 0:00:13]} 31. Kh2 {[%emt 0:00:25]} Bb1 {[%emt 0:00:25]} 32. Re1 {[%emt 0:00:35]} Qe5+ {[%emt 0:00:33]} 33. Qg3 {[%emt 0:01:03]} Qxg3+ {[%emt 0:00:25]} 34. Kxg3 {[%emt 0:00:03]} gxf5 {[%emt 0:00:14]} 35. exf5 {[%emt 0:00:25]} Bxf5 {[%emt 0:00:19]} 36. Bf4 {[%emt 0:00:24]} d5 {[%emt 0:01:13]} 37. Bd6 {[%emt 0:00:36]} Rc8 {[%emt 0:00:08]} 38. Ra5 {[%emt 0:00:11]} c4 {[%emt 0:00:58]} 39. Rxd5 {[%emt 0:00:04]} Bg6 {[%emt 0:00:22]} 40. Rc5 {[%emt 0:00:00]} Rxc5 {[%emt 0:00:00]} 41. Bxc5 {[%emt 0:01:09]} c3 {[%emt 0:01:26]} 42. Be3 {[%emt 0:00:26]} c2 {[%emt 0:05:38]} 43. Ra1 {[%emt 0:01:12]} Rc7 {[%emt 0:02:21]} 44. Kf2 {[%emt 0:00:14]} Kf7 {[%emt 0:01:36]} 45. Ke2 {[%emt 0:00:24]} Rd7 {[%emt 0:00:52]} 46. Ra3 {[%emt 0:02:14]} Bh5+ {[%emt 0:00:36]} 47. Kf2 {[%emt 0:00:11]} Rc7 {[%emt 0:01:11]} 48. Ra1 {[%emt 0:00:13]} Ke6 {[%emt 0:03:40]} 49. Bc1 {[%emt 0:10:30]} Rd7 {[%emt 0:02:50]} 50. Ra6+ {[%emt 0:00:18]} Kd5 {[%emt 0:00:29]} 51. Ke3 {[%emt 0:00:59]} Re7+ {[%emt 0:02:28]} 52. Kd2 {[%emt 0:20:29]} Bg6 {[%emt 0:00:26]} 53. Kc3 {[%emt 0:00:00]} Rc7+ {[%emt 0:01:07]} 54. Kb2 {[%emt 0:00:00]} Ke4 {[%emt 0:01:25]} 55. Ra3 {[%emt 0:00:00]} Kd4 {[%emt 0:01:05]} 56. Be3+ {[%emt 0:00:00]} Kd5 {[%emt 0:00:29]} 57. Bc1 {[%emt 0:00:00]} Rb7+ {[%emt 0:01:48]} 58. Rb3 {[%emt 0:00:00]} Rf7 {[%emt 0:00:27]} 59. Rc3 {[%emt 0:00:00]} Rf2 {[%emt 0:01:14]} 60. Ra3 {[%emt 0:00:00]} Rg2 {[%emt 0:00:40]} 61. Rc3 {[%emt 0:00:00]} Ke5 {[%emt 0:02:03]} 62. Rc5+ {[%emt 0:00:00]} Kd4 {[%emt 0:00:16]} 63. Rc3 {[%emt 0:00:00]} Re2 {[%emt 0:01:00]} 64. Ra3 {[%emt 0:00:00]} Re6 {[%emt 0:01:10]} 65. Rb3 {[%emt 0:00:00]} Rc6 {[%emt 0:02:20]} 66. Be3+ {[%emt 0:00:00]} Ke5 {[%emt 0:00:53]} 67. Bc1 {[%emt 0:00:00]} Be4 {[%emt 0:00:22]} 68. Rb5+ {[%emt 0:00:00]} Ke6 {[%emt 0:00:13]} 69. Rb3 {[%emt 0:00:00]} Kf5 {[%emt 0:00:51]} 70. Rc3 {[%emt 0:00:00]} Rg6 {[%emt 0:00:51]} 71. Re3 {[%emt 0:00:00]} Rg8 {[%emt 0:00:45]} 72. Rc3 {[%emt 0:00:00]} Kg4 {[%emt 0:00:27]} 73. Re3 {[%emt 0:00:00]} Bf5 {[%emt 0:00:16]} 74. Re1 {[%emt 0:00:00]} Rb8+ {[%emt 0:00:57]} 75. Kc3 {[%emt 0:00:00]} Rd8 {[%emt 0:00:40]} 76. Re7 {[%emt 0:05:09]} Rd1 {[%emt 0:00:32]} 77. Kb2 {[%emt 0:07:21]} Rxc1 {[%emt 0:01:14]} 78. Kxc1 {[%emt 0:00:00]} Kxg5 {[%emt 0:00:04]} 79. Kd2 {[%emt 0:00:00]} h5 {[%emt 0:00:13]} 80. Rc7 {[%emt 0:00:00]} Kf4 {[%emt 0:00:42]} 81. Rc3 {[%emt 0:00:00]} h4 {[%emt 0:00:16]} 82. Ke2 {[%emt 0:00:00]} Be4 {[%emt 0:02:30]} 83. Kf2 {[%emt 0:00:00]} Bd3 {[%emt 0:00:36]} 84. Kg2 {[%emt 0:00:00]} Bf5 {[%emt 0:00:55]} 85. Kh2 {[%emt 0:00:00]} Ke5 {[%emt 0:01:05]} 86. Rxc2 {[%emt 0:00:00]} Bxc2 {[%emt 0:00:05]} 87. Kh3 {[%emt 0:00:00]} 1/2-1/2